bitfinex/quotes_SOLUSD_20251117
["timestamp","ask_amount","ask_price","bid_price","bid_amount"]
[1763421742116,25.58446352,131.21,131.15,7.46350352]
[1763421742281,7.46350352,131.2,131.14,8.28350352]
[1763421742609,8.14350352,131.2,131.14,7.56350352]
[1763421742805,8.14350352,131.2,131.14,8.28350352]
[1763421742806,0.68,131.19,131.14,8.28350352]
[1763421743307,7.46350352,131.2,131.14,7.56350352]
[1763421743482,8.14350352,131.2,131.16,0.92]
[1763421743683,18.12096,131.17,131.16,0.2]
[1763421744611,26.26446352,131.17,131.16,0.2]
[1763421748689,30.2586705,131.17,131.16,0.2]
[1763421750728,29.5786705,131.17,131.16,0.2]
[1763421751091,22.11516698,131.17,131.16,0.2]
[1763421751293,30.2586705,131.17,131.16,0.2]
[1763421751598,29.5786705,131.17,131.16,0.2]
[1763421752897,25.25831431,131.17,131.16,0.2]
[1763421757922,35.727142,131.17,131.16,0.2]
[1763421758324,12.93197502,131.15,131.14,0.1]
[1763421758515,13.51197502,131.15,131.09,0.1]
[1763421758716,3.14314733,131.1,131.09,0.1]
[1763421759127,3.72314733,131.1,131.09,0.1]
[1763421760019,31.63293502,131.1,131.09,0.1]
[1763421760537,13.51197502,131.1,131.09,0.1]
[1763421761220,21.94955858,131.1,131.09,0.1]
[1763421761539,18.12096,131.07,131.02,0.82]
[1763421761710,3.14314733,131.05,131.02,0.82]
[1763421762434,3.14314733,131.06,131.02,0.82]
[1763421763016,21.26410733,131.07,131.02,0.82]
[1763421763435,3.14314733,131.06,131.02,0.82]
[1763421763819,18.12096,131.07,131.02,3.96314733]
[1763421764019,21.26410733,131.07,131.03,0.7]
[1763421765741,18.12096,131.07,131.03,0.7]
[1763421766835,18.12096,131.07,131.03,8.19345256]
[1763421767147,18.12096,131.07,131.03,0.7]
[1763421767464,18.12096,131.07,131.04,0.7]
[1763421767623,18.12096,131.03,131.02,0.1]
[1763421767822,7.49345256,131.03,131.02,0.1]
[1763421768247,8.07345256,131.03,131.02,0.1]
[1763421768448,17.86228025,131.03,131.02,0.1]
[1763421769023,19.58732231,131.03,131.02,0.1]
[1763421769223,44.65537722,131.03,131.02,0.1]
[1763421769753,37.16192466,131.03,131.02,0.1]
[1763421769933,44.65537722,131.03,131.02,0.1]
[1763421770420,44.65537722,131.03,131.02,0.8]
[1763421770421,26.79309697,131.03,131.02,0.8]
[1763421770622,25.61441256,131.03,131.02,0.1]
[1763421770855,29.87133815,131.03,131.02,0.1]
[1763421771069,18.12096,131.03,131.02,0.1]
[1763421771646,9.78882769,131.06,131.02,0.1]
[1763421771854,11.75037815,131.05,131.02,0.8]
[1763421772074,18.12096,131.04,131.02,0.8]
[1763421772252,11.75037815,131.05,131.02,0.8]
[1763421773351,29.87133815,131.06,131.02,0.8]
[1763421773665,18.12096,131.06,131.02,0.8]
[1763421773975,11.75037815,131.07,131.02,0.8]
[1763421774173,11.75037815,131.07,131.02,12.55037815]
[1763421774552,11.75037815,131.07,131.03,0.7]
[1763421774768,29.87133815,131.07,131.03,0.7]
[1763421775051,11.75037815,131.06,131.03,0.7]
[1763421775262,29.87133815,131.07,131.03,0.7]
[1763421775658,11.75037815,131.06,131.03,0.7]
[1763421776656,29.87133815,131.07,131.03,0.7]
[1763421776976,11.75037815,131.05,131.03,0.7]
[1763421777479,11.75037815,131.06,131.03,0.7]
[1763421777645,11.75037815,131.05,131.03,0.7]
[1763421777848,18.70096,131.07,131.03,0.7]
[1763421777849,11.75037815,131.06,131.03,0.7]
[1763421778052,11.75037815,131.05,131.03,0.7]
[1763421778550,11.75037815,131.05,131.02,0.1]
[1763421778751,11.75037815,131.04,131.02,0.1]
[1763421778979,11.75037815,131.04,131.02,0.8]
[1763421779156,11.75037815,131.05,131.02,0.8]
[1763421779473,11.75037815,131.04,131.02,0.8]
[1763421779651,11.75037815,131.05,131.02,0.8]
[1763421780363,11.75037815,131.07,131.02,0.8]
[1763421780570,11.75037815,131.07,131.02,12.55037815]
[1763421781072,11.75037815,131.07,131.03,0.7]
[1763421781275,11.75037815,131.08,131.03,0.7]
[1763421781575,11.75037815,131.07,131.03,0.7]
[1763421781961,27.90978769,131.1,131.03,0.7]
[1763421782161,11.75037815,131.08,131.03,0.7]
[1763421782358,11.75037815,131.07,131.03,0.7]
[1763421783259,11.75037815,131.08,131.03,0.7]
[1763421783461,18.69747306,131.1,131.04,11.75037815]
[1763421783674,36.81843306,131.1,131.04,11.75037815]
[1763421783849,11.75037815,131.13,131.07,11.75037815]
[1763421784054,11.75037815,131.13,131.08,11.75037815]
[1763421784270,11.75037815,131.13,131.09,0.7]
[1763421784462,11.75037815,131.14,131.09,0.7]
[1763421784878,11.75037815,131.15,131.09,12.45037815]
[1763421785076,11.75037815,131.16,131.11,11.75037815]
[1763421785382,11.75037815,131.15,131.1,0.7]
[1763421785568,11.75037815,131.13,131.08,11.75037815]
[1763421785756,11.75037815,131.12,131.09,0.7]
[1763421786085,11.75037815,131.14,131.09,0.7]
[1763421786261,3.99420698,131.17,131.09,0.7]
[1763421786461,3.99420698,131.17,131.13,11.75037815]
[1763421786661,11.75037815,131.16,131.11,11.75037815]
[1763421786887,11.75037815,131.16,131.1,11.75037815]
[1763421787181,4.57420698,131.17,131.1,11.75037815]
[1763421787182,11.75037815,131.15,131.1,11.75037815]
[1763421787396,11.75037815,131.14,131.11,0.7]
[1763421787887,11.75037815,131.15,131.11,0.7]
[1763421788286,29.87133815,131.16,131.11,0.7]
[1763421788471,29.87133815,131.16,131.09,12.45037815]
[1763421788472,11.75037815,131.14,131.09,12.45037815]
[1763421788674,11.75037815,131.14,131.11,0.7]
[1763421789186,11.75037815,131.15,131.11,0.7]
[1763421789361,29.87133815,131.16,131.11,12.45037815]
[1763421789559,18.12096,131.16,131.12,11.75037815]
[1763421789761,18.12096,131.16,131.12,12.45037815]
[1763421790055,15.74458513,131.17,131.13,0.7]
[1763421790284,12.33037815,131.16,131.12,0.7]
[1763421790461,11.75037815,131.16,131.13,0.7]
[1763421793181,11.75037815,131.15,131.1,11.75037815]
[1763421793490,3.99420698,131.17,131.06,104.67]
[1763421793491,11.75037815,131.12,131.06,104.67]
[1763421793674,11.75037815,131.13,131.08,11.75037815]
[1763421793865,11.75037815,131.13,131.09,0.67]
[1763421795589,0.58,131.15,131.09,0.67]
[1763421795762,13.78303467,131.17,131.12,11.75037815]
[1763421795763,15.74458513,131.17,131.12,11.75037815]
[1763421796171,15.74458513,131.17,131.09,104.67]
[1763421796172,11.75037815,131.16,131.13,0.67]
[1763421798591,11.75037815,131.14,131.1,0.69]
[1763421798789,11.75037815,131.13,131.1,0.69]
[1763421799094,11.75037815,131.12,131.08,0.69]
[1763421799307,18.12096,131.16,131.09,0.69]
[1763421799308,11.75037815,131.13,131.09,0.69]
[1763421799606,11.75037815,131.14,131.09,12.44037815]
[1763421799806,11.75037815,131.12,131.1,0.69]
[1763421800171,11.75037815,131.13,131.1,0.69]
[1763421800606,11.75037815,131.14,131.1,0.69]
[1763421801396,11.75037815,131.12,131.1,0.69]
[1763421801584,11.75037815,131.12,131.07,11.75037815]
[1763421801784,11.75037815,131.12,131.08,0.69]
[1763421803105,11.75037815,131.13,131.08,12.44037815]
[1763421803709,11.75037815,131.13,131.09,0.69]
[1763421804317,29.87133815,131.14,131.09,0.69]
[1763421805410,29.87133815,131.14,131.09,12.44037815]
[1763421805598,18.12096,131.14,131.1,11.75037815]
[1763421805798,18.12096,131.14,131.1,12.44037815]
[1763421805996,18.12096,131.14,131.11,0.69]
[1763421806415,29.87133815,131.16,131.11,12.44037815]
[1763421806618,29.87133815,131.16,131.12,0.69]
[1763421807619,11.75037815,131.14,131.09,12.44037815]
[1763421808122,11.75037815,131.14,131.1,0.69]
[1763421808618,29.87133815,131.16,131.11,11.75037815]
[1763421809018,29.87133815,131.16,131.12,0.69]
[1763421809712,18.12096,131.16,131.12,12.44037815]
[1763421809898,29.87133815,131.16,131.12,0.69]
[1763421810096,29.87133815,131.16,131.13,0.69]
[1763421810097,18.12096,131.14,131.13,0.69]
[1763421814530,7.28121093,131.19,131.13,0.69]
[1763421814727,29.87133815,131.16,131.13,0.69]
[1763421816237,18.12096,131.16,131.13,0.69]
[1763421816815,11.75037815,131.14,131.1,0.69]
[1763421817006,4.79812198,131.13,131.1,0.69]
[1763421817207,16.54850013,131.13,131.1,0.69]
[1763421817510,16.54850013,131.12,131.08,0.69]
[1763421817724,16.54850013,131.12,131.06,115.75037815]
[1763421817725,11.75037815,131.1,131.06,0.69]
[1763421817909,11.75037815,131.1,131.05,11.75037815]
[1763421817910,4.79812198,131.09,131.07,0.69]
[1763421818808,8.79383697,131.09,131.07,0.69]
[1763421819118,4.79812198,131.08,131.07,0.69]
[1763421819629,4.79812198,131.08,131.07,12.44037815]
[1763421820133,4.79812198,131.08,131.07,0.69]
[1763421821532,4.79812198,131.08,131.05,116.44037815]
[1763421821854,16.54850013,131.07,131.03,0.71]
[1763421822014,16.54850013,131.06,131.03,0.71]
[1763421822219,16.54850013,131.05,131.02,0.81]
[1763421822525,4.79812198,131.04,131.02,0.81]
[1763421822932,4.79812198,131.04,131.02,12.56037815]
[1763421823234,10.22795158,131.09,131.02,0.81]
[1763421823235,4.07812198,131.03,131.02,0.81]
[1763421823547,18.12096,131.08,131.03,0.71]
[1763421823725,18.12096,131.08,131.03,12.46037815]
[1763421824226,18.12096,131.08,131.04,12.46037815]
[1763421824422,18.12096,131.08,131.04,11.75037815]
[1763421824740,18.12096,131.08,131.05,0.71]
[1763421825550,30.59133815,131.08,131.03,12.46037815]
[1763421826015,30.59133815,131.08,131.04,0.71]
[1763421826738,12.47037815,131.08,131.04,0.71]
[1763421826950,15.74609314,131.09,131.04,0.71]
[1763421827149,16.46609314,131.09,131.04,12.46037815]
[1763421827441,15.74609314,131.09,131.04,12.46037815]
[1763421827616,16.46609314,131.09,131.05,0.71]
[1763421828543,11.75037815,131.08,131.05,0.71]
[1763421829448,12.47037815,131.07,131.02,0.1]
[1763421829639,12.47037815,131.07,131.02,0.81]
[1763421830147,11.75037815,131.07,131.02,0.81]
[1763421830443,11.75037815,131.07,131.02,12.56037815]
[1763421830660,12.47037815,131.07,131.02,12.56037815]
[1763421830942,7.49484057,131.07,131.03,0.71]
[1763421831117,8.21484057,131.07,131.03,0.71]
[1763421832927,7.49484057,131.07,131.03,0.71]
[1763421833333,11.49055556,131.09,131.04,7.49484057]
[1763421833544,11.49055556,131.09,131.05,0.71]
[1763421833732,12.21055556,131.09,131.05,0.71]
[1763421833934,3.99571499,131.09,131.05,112.20484057]
[1763421834335,3.99571499,131.09,131.06,0.71]
[1763421835048,11.49055556,131.09,131.06,0.71]
[1763421835220,4.79191664,131.08,131.06,0.71]
[1763421835422,4.79191664,131.07,131.06,0.71]
[1763421835843,4.79191664,131.08,131.06,0.71]
[1763421836048,4.79191664,131.07,131.06,0.71]
[1763421836222,4.79191664,131.08,131.06,0.71]
[1763421836422,4.79191664,131.07,131.06,0.71]
[1763421836946,4.79191664,131.08,131.05,111.49484057]
[1763421837147,4.79191664,131.07,131.05,112.20484057]
[1763421837447,4.79191664,131.06,131.05,112.20484057]
[1763421837650,4.79191664,131.08,131.05,8.20484057]
[1763421837853,4.79191664,131.07,131.05,8.20484057]
[1763421838142,4.79191664,131.06,131.05,8.20484057]
[1763421838750,4.79191664,131.08,131.05,8.20484057]
[1763421839344,0.72,131.07,131.02,104.1]
[1763421839555,7.49484057,131.05,131.02,0.1]
[1763421839860,4.79353073,131.04,131.02,0.1]
[1763421840050,5.51353073,131.04,131.02,0.1]
[1763421840253,0.72,131.03,131.02,0.1]
[1763421840559,13.0083713,131.03,131.02,0.1]
[1763421841326,13.0083713,131.03,131.02,0.01446128]
[1763421845133,22.79719899,131.03,131.02,0.01446128]
[1763421845462,22.79719899,131.03,130.99,0.1]
[1763421845670,25.61580057,131.0,130.95,0.1]
[1763421845825,7.49484057,130.96,130.95,0.1]
[1763421846028,12.2883713,130.96,130.95,0.1]
[1763421846231,13.0083713,130.96,130.95,0.1]
[1763421847333,4.79353073,130.96,130.95,0.1]
[1763421847540,7.49484057,130.97,130.95,0.1]
[1763421847744,4.79353073,130.96,130.95,0.1]
[1763421848470,13.0083713,130.96,130.95,0.1]
[1763421848761,17.00753242,130.96,130.95,0.1]
[1763421849643,17.02509311,130.96,130.95,0.1]
[1763421849849,27.90978769,130.94,130.93,0.1]
[1763421850157,27.90978769,130.94,130.88,0.1]
[1763421850158,22.93205142,130.94,130.88,0.1]
[1763421850357,7.49484057,130.92,130.88,0.81]
[1763421850548,4.81109142,130.91,130.88,8.30484057]
[1763421850860,18.12096,130.94,130.88,8.30484057]
[1763421851070,4.80396978,130.93,130.9,7.49484057]
[1763421851363,4.7998531,130.92,130.9,7.49484057]
[1763421851566,7.49484057,130.94,130.9,0.71]
[1763421851743,7.49484057,130.94,130.89,7.49484057]
[1763421851744,4.80065366,130.93,130.89,7.49484057]
[1763421851950,4.80065366,130.93,130.91,0.72]
[1763421852150,8.16484057,130.95,130.91,0.72]
[1763421852375,4.79921362,130.94,130.91,0.72]
[1763421853062,12.29405419,130.94,130.91,0.72]
[1763421853263,3.99916112,130.96,130.93,7.49484057]
[1763421853660,3.99916112,130.96,130.94,0.72]
[1763421853863,0.67,131.02,130.95,7.49484057]
[1763421854165,3.99850794,131.03,130.99,7.49484057]
[1763421854365,4.79758353,131.02,130.98,7.49484057]
[1763421854570,5.46758353,131.02,130.95,7.49484057]
[1763421854762,7.49484057,131.0,130.95,8.21484057]
[1763421854960,4.79758353,130.99,130.96,0.72]
[1763421855175,7.49484057,131.02,130.97,7.49484057]
[1763421855379,4.79960132,131.01,130.97,7.49484057]
[1763421855679,4.79960132,131.0,130.98,8.21484057]
[1763421855884,4.79960132,130.99,130.98,8.21484057]
[1763421856178,4.79960132,131.02,130.98,7.49484057]
[1763421856560,4.79960132,131.02,130.99,0.72]
[1763421857650,4.79960132,131.02,130.92,10.49761667]
[1763421857651,7.49484057,131.01,130.97,0.72]
[1763421857855,4.79960132,131.0,130.93,0.72]
[1763421858093,12.29444189,131.0,130.95,7.49484057]
[1763421858265,4.79960132,130.99,130.96,7.49484057]
[1763421858588,7.49484057,131.01,130.96,7.49484057]
[1763421858589,4.80332142,130.98,130.96,7.49484057]
[1763421858771,7.49484057,131.01,130.97,0.7]
[1763421859085,4.80433384,131.0,130.97,0.7]
[1763421859492,12.29917441,131.0,130.97,0.7]
[1763421859690,4.80433384,130.99,130.97,0.7]
[1763421860972,4.80433384,130.99,130.95,7.49484057]
[1763421861292,12.29917441,130.99,130.94,7.49484057]
[1763421861469,12.96917441,130.98,130.93,8.19484057]
[1763421861673,4.80433384,130.97,130.94,7.49484057]
[1763421861977,7.49484057,130.99,130.94,7.49484057]
[1763421861978,4.80433384,130.96,130.94,8.19484057]
[1763421862160,4.80433384,130.95,130.94,8.19484057]
[1763421862359,4.80433384,130.95,130.94,7.49484057]
[1763421862769,5.47433384,130.99,130.94,8.19484057]
[1763421862988,4.80433384,130.98,130.95,8.19484057]
[1763421863189,4.80433384,130.97,130.95,8.19484057]
[1763421863487,0.67,130.99,130.95,8.19484057]
[1763421863488,4.80433384,130.96,130.95,8.19484057]
[1763421863661,5.47433384,130.99,130.95,0.7]
[1763421863861,4.80433384,130.98,130.95,8.19484057]
[1763421864081,0.67,130.99,130.95,8.19484057]
[1763421864082,4.80433384,130.97,130.95,8.19484057]
[1763421864254,4.80433384,130.96,130.95,8.19484057]
[1763421864458,18.12096,131.01,130.96,0.7]
[1763421864459,26.28580057,131.01,130.96,0.7]
[1763421864659,7.49484057,130.99,130.94,7.49484057]
[1763421864860,4.81997089,130.98,130.94,7.49484057]
[1763421865083,4.81997089,130.98,130.94,8.19484057]
[1763421865281,5.48997089,130.98,130.94,0.7]
[1763421865483,0.67,130.97,130.92,104.7]
[1763421865687,12.98481146,130.97,130.92,112.19484057]
[1763421865879,12.31481146,130.96,130.92,104.0]
[1763421866069,4.81997089,130.95,130.92,0.7]
[1763421866465,4.81997089,130.95,130.91,7.49484057]
[1763421866680,0.67,130.94,130.9,7.49484057]
[1763421866869,4.81997089,130.94,130.91,7.49484057]
[1763421867070,4.81997089,130.93,130.89,0.7]
[1763421867370,4.81997089,130.92,130.91,7.49484057]
[1763421867767,4.81997089,130.97,130.91,8.19484057]
[1763421867974,4.8215443,130.96,130.93,7.49484057]
[1763421868179,4.8215443,130.95,130.93,7.49484057]
[1763421868366,4.8215443,130.94,130.93,7.49484057]
[1763421868873,4.8215443,130.97,130.93,8.19484057]
[1763421869078,4.8215443,130.96,130.94,8.19484057]
[1763421869289,4.8215443,130.95,130.94,8.19484057]
[1763421869786,4.8215443,130.97,130.94,8.19484057]
[1763421869999,4.8215443,130.96,130.94,0.7]
[1763421870165,4.8215443,130.95,130.94,8.19484057]
[1763421870365,4.8215443,130.97,130.94,8.19484057]
[1763421870561,4.8215443,130.96,130.94,8.19484057]
[1763421870766,4.8215443,130.95,130.94,8.19484057]
[1763421871266,8.16484057,130.98,130.94,8.19484057]
[1763421871586,4.82131472,130.97,130.94,8.19484057]
[1763421871790,4.82131472,130.97,130.96,7.49484057]
[1763421871977,20.0436949,131.03,130.96,7.49484057]
[1763421871978,4.82131472,130.99,130.96,7.49484057]
[1763421872298,4.82131472,130.98,130.97,0.7]
[1763421872592,4.82131472,131.01,130.97,0.7]
[1763421873308,4.82131472,131.01,130.98,7.49484057]
[1763421873475,4.82131472,131.0,130.98,7.49484057]
[1763421873797,4.82436379,130.99,130.98,8.19484057]
[1763421874372,4.82436379,131.02,130.98,8.19484057]
[1763421874589,4.82577727,131.01,130.99,0.7]
[1763421874786,3.99755057,131.04,131.0,7.49484057]
[1763421874987,4.82551857,131.03,131.01,7.49484057]
[1763421875294,16.83697754,131.06,131.01,7.49484057]
[1763421875295,4.82551857,131.02,131.01,7.49484057]
[1763421875500,4.82551857,131.04,131.01,7.49484057]
[1763421875682,4.82551857,131.03,131.01,7.49484057]
[1763421876010,4.82551857,131.02,131.01,8.19484057]
[1763421876308,4.82551857,131.02,130.98,104.0]
[1763421876309,4.82551857,131.02,130.99,8.19484057]
[1763421876492,4.82642375,131.01,130.99,8.19484057]
[1763421876696,7.49484057,131.03,130.99,8.19484057]
[1763421876886,7.49484057,131.03,130.99,7.49484057]
[1763421877075,8.16484057,131.04,131.0,0.7]
[1763421877677,7.49484057,131.03,131.0,0.7]
[1763421878815,8.16484057,131.04,131.0,0.7]
[1763421879017,18.12096,131.05,131.0,8.19484057]
[1763421879316,26.28580057,131.05,131.01,7.49484057]
[1763421879522,0.67,131.04,131.0,0.7]
[1763421879809,0.67,131.04,131.0,8.19484057]
[1763421880003,25.61580057,131.05,131.0,8.19484057]
[1763421880317,26.28580057,131.05,131.01,0.7]
[1763421880516,18.79096,131.05,131.01,8.19484057]
[1763421880808,26.28580057,131.05,131.01,8.19484057]
[1763421880989,26.28580057,131.05,131.01,0.7]
[1763421881625,0.71,131.09,131.01,8.19484057]
[1763421881779,25.61580057,131.07,131.03,7.49484057]
[1763421881984,18.12096,131.07,131.03,7.49484057]
[1763421882211,18.12096,131.07,131.03,8.18484057]
[1763421882511,26.32580057,131.07,131.03,0.69]
[1763421882713,8.20484057,131.06,131.01,8.18484057]
[1763421883101,25.61580057,131.07,131.02,8.18484057]
[1763421883414,25.61580057,131.07,131.04,7.49484057]
[1763421883415,18.12096,131.07,131.04,7.49484057]
[1763421883617,8.20484057,131.09,131.05,7.49484057]
[1763421883786,7.49484057,131.1,131.06,7.49484057]
[1763421883991,8.20484057,131.1,131.06,0.69]
[1763421884418,18.12096,131.12,131.04,7.49484057]
[1763421884419,7.49484057,131.08,131.04,7.49484057]
[1763421884614,7.49484057,131.07,131.03,0.69]
[1763421885097,0.71,131.06,131.02,7.49484057]
[1763421885417,8.20484057,131.06,131.02,8.18484057]
[1763421885589,7.49484057,131.07,131.02,7.49484057]
[1763421885785,7.49484057,131.07,131.03,0.69]
[1763421885990,8.20484057,131.07,131.03,0.69]
[1763421886911,7.49484057,131.06,131.03,0.69]
[1763421888694,3.99703236,131.05,131.03,0.69]
[1763421888899,3.99703236,131.05,131.02,7.49484057]
[1763421890007,0.71,131.04,131.01,7.49484057]
[1763421890522,11.49187293,131.05,131.01,7.49484057]
[1763421890714,12.20187293,131.05,131.01,7.49484057]
[1763421890909,12.20187293,131.05,131.01,8.18484057]
[1763421891319,3.99703236,131.05,131.02,8.18484057]
[1763421891794,4.70703236,131.05,131.02,8.18484057]
[1763421892319,3.99703236,131.05,131.03,8.18484057]
[1763421892511,3.99703236,131.05,131.03,7.49484057]
[1763421892825,3.99703236,131.05,131.04,0.69]
[1763421894908,3.99703236,131.05,131.03,11.74226304]
[1763421895112,3.99703236,131.05,131.03,12.43226304]
[1763421896316,3.99703236,131.05,131.03,11.74226304]
[1763421896622,3.99703236,131.05,131.04,0.69]
[1763421897294,3.99703236,131.05,131.03,11.74226304]
[1763421897498,3.99703236,131.05,131.02,12.43226304]
[1763421897921,9.78882769,131.12,131.04,41.60548608]
[1763421898143,0.2,131.13,131.11,11.74226304]
[1763421898430,0.2,131.13,131.12,11.74226304]
[1763421898595,0.2,131.13,131.11,11.74226304]
[1763421899112,0.2,131.13,131.1,9.78882769]
[1763421899113,0.2,131.13,131.12,11.74226304]
[1763421899308,0.2,131.13,131.12,21.53109073]
[1763421901124,0.2,131.13,131.07,27.90978769]
[1763421901349,0.2,131.13,131.1,11.74226304]
[1763421901510,12.65226304,131.13,131.09,9.78882769]
[1763421901712,12.65226304,131.13,131.08,11.74226304]
[1763421902027,0.71,131.12,131.08,11.74226304]
[1763421902915,11.94226304,131.13,131.09,9.78882769]
[1763421902916,0.2,131.13,131.09,9.78882769]
[1763421903120,0.2,131.13,131.12,51.39431377]
[1763421903453,0.2,131.2,131.16,9.78882769]
[1763421903617,0.2,131.2,131.19,21.53109073]
[1763421906646,0.2,131.2,131.19,22.29334395]
[1763421908525,0.2,131.2,131.19,10.55108091]
[1763421908839,0.2,131.2,131.19,22.29334395]
[1763421910543,0.2,131.2,131.19,21.53109073]
[1763421912320,0.91,131.2,131.19,9.78882769]
[1763421912526,0.2,131.2,131.19,9.78882769]
[1763421912841,0.2,131.2,131.18,11.74226304]
[1763421913043,0.2,131.2,131.19,11.74226304]
[1763421914173,0.91,131.2,131.19,11.74226304]
[1763421914317,0.91,131.2,131.16,11.74226304]
[1763421914517,0.71,131.19,131.17,11.74226304]
[1763421914971,0.71,131.19,131.15,11.74226304]
[1763421915124,12.45226304,131.19,131.15,9.78882769]
[1763421915519,0.71,131.18,131.14,11.74226304]
[1763421916341,12.45226304,131.18,131.13,11.74226304]
[1763421916549,0.71,131.18,131.14,11.74226304]
[1763421916736,0.71,131.17,131.14,11.74226304]
[1763421916931,0.71,131.17,131.13,11.74226304]
[1763421919365,0.71,131.17,131.15,11.74226304]
[1763421919647,0.71,131.17,131.13,11.74226304]
[1763421919648,18.12096,131.16,131.13,11.74226304]
[1763421919852,18.12096,131.16,131.12,21.53109073]
[1763421920160,0.72,131.15,131.13,11.74226304]
[1763421920327,11.74226304,131.14,131.01,0.76330051]
[1763421920529,11.74226304,131.13,131.08,11.74226304]
[1763421920752,12.46226304,131.14,131.09,11.74226304]
[1763421920955,11.74226304,131.14,131.09,11.74226304]
[1763421921276,18.12096,131.12,131.1,11.74226304]
[1763421921776,0.72,131.11,131.1,11.74226304]
[1763421923186,0.72,131.11,130.95,150.96905216]
[1763421923187,0.72,131.11,131.07,11.74226304]
[1763421923552,12.46226304,131.11,131.06,11.74226304]
[1763421923980,0.72,131.1,131.06,11.74226304]
[1763421924271,0.72,131.1,131.07,11.74226304]
[1763421925181,0.72,131.1,131.06,11.74226304]
[1763421925751,0.72,131.1,131.08,11.74226304]
[1763421926756,18.12096,131.12,131.09,21.53109073]
[1763421926956,18.84096,131.12,131.1,11.74226304]
[1763421927282,0.72,131.11,131.1,11.74226304]
[1763421928382,18.12096,131.09,131.03,9.78882769]
[1763421928552,29.86322304,131.1,131.05,11.74226304]
[1763421928749,0.72,131.09,131.05,11.74226304]
[1763421930279,18.12096,131.07,131.05,11.74226304]
[1763421930668,0.72,131.07,131.05,11.74226304]
[1763421931258,0.72,131.07,130.99,0.1]
[1763421931259,18.12096,131.03,130.99,0.1]
[1763421931467,11.74226304,131.05,131.0,11.74226304]
[1763421931778,11.74226304,131.03,130.99,9.88882769]
[1763421932298,0.72,131.03,131.02,9.78882769]
[1763421932577,18.12096,131.03,131.02,9.78882769]
[1763421933167,0.72,131.03,131.02,9.78882769]
[1763421933367,18.84096,131.03,131.02,9.78882769]
[1763421934166,0.72,131.05,131.02,21.53109073]
[1763421936676,0.72,131.05,131.0,9.78882769]
[1763421936885,0.72,131.05,130.99,122.22096]
[1763421937079,0.72,131.05,131.02,9.78882769]
[1763421938090,12.46226304,131.05,131.02,9.78882769]
[1763421938487,18.12096,131.06,131.02,21.53109073]
[1763421938813,18.12096,131.07,131.03,21.53109073]
[1763421939087,0.72,131.06,131.03,21.53109073]
[1763421939780,0.72,131.06,131.03,9.78882769]
[1763421939985,12.46226304,131.06,131.03,9.78882769]
[1763421940197,0.72,131.06,131.03,9.78882769]
[1763421940395,0.72,131.05,131.03,9.78882769]
[1763421941100,11.74226304,131.07,131.03,21.53109073]
[1763421941101,0.72,131.07,131.03,21.53109073]
[1763421941301,0.72,131.06,131.03,21.53109073]
[1763421942088,11.74226304,131.04,131.01,9.78882769]
[1763421942280,11.74226304,131.03,131.01,113.78882769]
[1763421942888,11.74226304,131.03,131.0,9.78882769]
[1763421945892,0.69,131.02,131.0,9.78882769]
[1763421946717,12.43226304,131.04,131.0,9.78882769]
[1763421947209,0.69,131.03,131.0,9.78882769]
[1763421947394,12.43226304,131.04,131.0,9.78882769]
[1763421947911,0.69,131.08,131.0,21.53109073]
[1763421948213,11.74226304,131.06,131.02,9.78882769]
[1763421948383,11.74226304,131.05,131.02,9.78882769]
[1763421948895,12.43226304,131.05,131.02,9.78882769]
[1763421949090,11.74226304,131.13,131.02,9.78882769]
[1763421949091,18.12096,131.1,131.02,9.78882769]
[1763421949296,12.43226304,131.06,131.02,9.78882769]
[1763421949997,11.74226304,131.06,131.02,9.78882769]
[1763421950215,12.43226304,131.08,131.04,9.78882769]
[1763421951082,11.74226304,131.08,131.04,9.78882769]
[1763421951410,0.69,131.1,131.04,9.78882769]
[1763421951411,12.43226304,131.07,131.04,9.78882769]
[1763421951713,11.74226304,131.07,131.04,9.78882769]
[1763421953209,12.43226304,131.07,131.04,9.78882769]
[1763421953511,11.74226304,131.05,131.0,9.78882769]